bitfinex/quotes_ETHUSD_20240709
["timestamp","ask_amount","ask_price","bid_price","bid_amount"]
[1720510328761,1.41716299,3080.5,3079.9,3.24684]
[1720510329308,1.01556212,3080.5,3079.9,3.24684]
[1720510329472,4.14500111,3080.7,3079.9,3.9286896]
[1720510329473,1.01556212,3080.6,3079.9,3.9286896]
[1720510329788,1.41716043,3080.5,3079.9,3.9286896]
[1720510330074,2.43272255,3080.5,3079.9,3.9286896]
[1720510330288,1.01556212,3080.5,3079.9,3.9286896]
[1720510331257,1.01556212,3080.5,3079.9,0.6818496]
[1720510331469,1.01556212,3080.5,3079.8,3.24693]
[1720510331470,2.43278979,3080.4,3079.8,3.24693]
[1720510331672,1.01556212,3080.4,3079.8,3.24693]
[1720510332789,1.01556212,3080.4,3079.3,2.2815]
[1720510332989,1.01407422,3080.1,3079.3,5.52894]
[1720510333194,1.01407422,3080.1,3079.6,3.24714]
[1720510333394,1.01407422,3080.2,3079.8,3.24696]
[1720510333685,1.01407422,3080.4,3079.8,3.24696]
[1720510333897,1.01407422,3080.5,3079.8,3.24696]
[1720510334106,3.5561259,3080.4,3079.8,3.24696]
[1720510334389,2.54205199,3080.3,3079.8,3.24696]
[1720510334570,1.01407422,3080.4,3079.9,3.24684]
[1720510335155,1.12478746,3080.3,3079.9,3.24684]
[1720510335358,1.01407422,3080.4,3079.9,3.24684]
[1720510335780,1.12480008,3080.3,3079.9,3.24684]
[1720510335999,1.01407422,3080.4,3079.9,3.24681]
[1720510336157,1.1247874,3080.3,3079.9,3.24681]
[1720510336359,1.12482008,3080.2,3079.5,3.24721]
[1720510336574,1.12482008,3080.1,3079.7,3.24704]
[1720510336803,1.01407422,3080.5,3080.0,3.24675]
[1720510336998,1.12478436,3080.4,3080.0,3.24675]
[1720510337157,1.12478436,3080.3,3080.0,3.24675]
[1720510337357,1.01407422,3080.5,3080.0,3.24675]
[1720510337682,1.12479005,3080.4,3080.0,3.24675]
[1720510337885,1.12479005,3080.3,3080.1,3.24663]
[1720510338204,1.01407422,3080.7,3080.1,0.649341]
[1720510338407,1.12465479,3080.6,3080.4,3.24626]
[1720510338696,1.01407422,3080.8,3080.4,3.24626]
[1720510339062,1.12463006,3080.7,3080.4,3.24626]
[1720510339285,1.12463006,3080.6,3080.4,3.24626]
[1720510339484,1.01407422,3080.8,3080.4,3.24626]
[1720510339683,1.12461996,3080.7,3080.4,3.24626]
[1720510339998,1.12461996,3080.6,3080.4,3.24626]
[1720510340216,1.01407422,3081.0,3080.7,3.24601]
[1720510340497,1.01407422,3081.3,3080.9,3.2457]
[1720510340707,1.12441283,3081.2,3080.9,3.2457]
[1720510340999,1.12441283,3081.1,3080.9,3.2457]
[1720510341156,1.12441283,3081.2,3081.0,3.24568]
[1720510341363,1.01407422,3081.5,3081.0,3.894839]
[1720510341562,1.12438271,3081.4,3081.2,3.24539]
[1720510341762,1.01407422,3081.7,3081.3,3.24531]
[1720510341995,1.01407422,3081.7,3081.2,3.24539]
[1720510342201,3.55511534,3081.6,3081.2,3.24539]
[1720510342405,3.55511534,3081.5,3081.0,3.24567]
[1720510342611,3.55529065,3081.4,3080.3,5.4089]
[1720510342896,3.55529065,3081.3,3080.3,2.4089]
[1720510343104,1.12441706,3081.2,3080.8,3.24588]
[1720510343259,1.12446216,3081.1,3080.8,3.24588]
[1720510343459,1.0141081,3081.3,3080.9,3.2458]
[1720510343660,4.17248017,3081.6,3080.8,3.24588]
[1720510343661,1.0141081,3081.4,3081.1,3.24551]
[1720510343865,1.12443307,3081.3,3081.1,3.24551]
[1720510344084,1.0141081,3081.5,3081.0,3.2456]
[1720510344303,1.12438775,3081.4,3081.2,3.24548]
[1720510344564,1.0141081,3081.6,3081.2,3.24548]
[1720510344769,2.5410489,3081.5,3081.2,3.24548]
[1720510344962,1.12434283,3081.4,3081.2,3.24548]
[1720510345193,1.12434283,3081.5,3081.3,3.24535]
[1720510345370,1.0141081,3081.7,3081.3,3.24535]
[1720510345709,2.54094653,3081.6,3081.3,3.24535]
[1720510346261,1.12431262,3081.5,3081.3,3.24535]
[1720510346568,1.01408723,3081.6,3081.3,3.24535]
[1720510347905,1.01408723,3081.6,3081.3,0.649094]
[1720510348109,1.01408723,3081.7,3081.6,3.24506]
[1720510349184,1.01408723,3081.7,3081.6,6.49012]
[1720510350714,1.01408723,3081.7,3081.6,15.01968]
[1720510351275,6.31e-06,3081.8,3081.7,14.42050796]
[1720510351595,1.03871924,3082.0,3081.9,9.73425]
[1720510351823,3.36660636,3083.1,3081.9,3.0]
[1720510351997,3.36660636,3083.1,3082.8,3.2437]
[1720510352206,3.36660636,3083.1,3083.0,3.24359]
[1720510352705,3.36660636,3083.1,3083.0,6.48718]
[1720510354408,3.36660636,3083.1,3083.0,3.24359]
[1720510356577,3.36660636,3083.1,3082.9,3.24367]
[1720510356821,3.36660636,3083.1,3083.0,3.24359]
[1720510358482,3.36660636,3083.1,3082.7,3.24389]
[1720510358926,3.703267,3083.1,3082.4,3.24413]
[1720510359086,3.36660636,3083.1,3082.1,1.75787672]
[1720510359410,3.36660636,3083.1,3083.0,3.24359]
[1720510360691,3.36660636,3083.1,3082.1,3.0]
[1720510360890,3.36660636,3083.1,3082.5,3.24409]
[1720510361090,3.36660636,3083.1,3082.6,3.24399]
[1720510361295,3.703267,3083.1,3082.6,3.24399]
[1720510361692,0.33666064,3083.1,3082.6,3.24399]
[1720510361998,2.2767,3083.5,3082.6,3.24399]
[1720510362213,5.2767,3083.5,3082.6,3.24399]
[1720510363520,2.504,3083.4,3082.1,3.24453]
[1720510363721,7.3343,3083.3,3082.0,3.24455]
[1720510363922,4.3208,3083.0,3081.6,3.24506]
[1720510364087,3.0,3082.9,3081.7,3.24488]
[1720510364413,3.94388,3082.9,3081.7,3.24488]
[1720510364616,0.55,3082.8,3081.7,3.24488]
[1720510364824,0.55,3082.8,3081.8,3.24485]
[1720510365120,0.449388,3082.7,3081.8,3.24485]
[1720510365615,0.449388,3082.7,3082.0,3.24464]
[1720510366209,0.449388,3082.7,3081.7,3.24496]
[1720510367024,0.449388,3082.7,3081.9,3.24474]
[1720510367517,0.449388,3082.7,3081.7,3.24496]
[1720510367682,0.449388,3082.7,3081.5,3.24517]
[1720510367889,2.2555,3082.6,3081.4,3.24526]
[1720510368119,0.4658888,3082.5,3081.3,3.24537]
[1720510368333,0.55,3082.4,3081.3,3.24537]
[1720510368621,0.4658888,3082.5,3081.3,3.24537]
[1720510368622,3.4658888,3082.5,3081.3,3.24537]
[1720510369114,3.4658888,3082.5,3081.5,3.24516]
[1720510369285,0.82253888,3082.4,3081.5,3.24516]
[1720510369484,0.82253888,3082.4,3081.4,3.24527]
[1720510369711,0.82253888,3082.4,3081.2,3.24539]
[1720510369906,0.82253888,3082.4,3081.3,3.24538]
[1720510370124,0.42884277,3082.3,3081.3,3.24538]
[1720510370816,0.42884277,3082.3,3080.7,1.032262]
[1720510370817,3.4658888,3082.5,3081.8,3.24485]
[1720510370986,3.0,3082.5,3081.8,3.24485]
[1720510371183,2.2555,3082.6,3081.8,3.24485]
[1720510371527,1.12415717,3082.5,3081.0,3.24569]
[1720510371855,2.2555,3082.6,3081.1,3.0]
[1720510371982,1.12417133,3082.5,3081.1,3.324569]
[1720510372182,2.48105,3082.6,3081.1,3.324569]
[1720510372183,1.12416325,3082.4,3081.6,3.24499]
[1720510372403,2.48105,3082.6,3081.8,3.24477]
[1720510372616,1.1241538,3082.5,3081.8,3.24477]
[1720510372822,2.48105,3082.6,3081.6,0.324499]
[1720510372978,1.12416352,3082.5,3081.2,3.24545]
[1720510373196,1.12416352,3082.4,3081.3,3.24538]
[1720510373396,1.12422523,3082.3,3081.4,3.24519]
[1720510373640,0.548105,3082.4,3081.5,3.24511]
[1720510374139,1.12417113,3082.3,3081.8,3.24482]
[1720510374297,2.2555,3082.6,3081.8,3.24482]
[1720510374496,1.12413002,3082.5,3081.6,3.24499]
[1720510374796,2.2555,3082.6,3081.2,3.24547]
[1720510374797,1.46209302,3082.4,3081.7,3.24495]
[1720510375029,0.337963,3082.4,3081.7,3.24495]
[1720510375419,1.12416568,3082.3,3081.7,3.24495]
[1720510375602,0.337963,3082.4,3081.7,3.24495]
[1720510375931,1.12417869,3082.3,3081.4,3.24521]
[1720510376131,0.337963,3082.4,3081.4,3.24521]
[1720510376341,1.12421064,3082.3,3081.4,3.24521]
[1720510376521,2.2555,3082.6,3081.4,0.649057]
[1720510376720,1.12416301,3082.5,3081.6,3.24505]
[1720510376928,1.12416301,3082.5,3081.2,3.0]
[1720510376929,2.2555,3082.6,3081.4,3.2452]
[1720510377103,1.1242066,3082.4,3081.4,3.2452]
[1720510377293,1.1242066,3082.3,3081.4,3.2452]
[1720510377530,1.1242066,3082.5,3081.4,3.2452]
[1720510377736,1.46218818,3082.4,3081.4,3.2452]
[1720510377938,1.12421752,3082.3,3081.4,3.2452]
[1720510378134,2.4454,3082.2,3081.4,3.2452]
[1720510378335,2.4454,3082.2,3081.3,3.24538]
[1720510378545,2.4454,3082.2,3081.2,6.2454]
[1720510378718,2.4454,3082.2,3081.4,3.24518]
[1720510379637,2.4454,3082.2,3081.5,3.24516]
[1720510380732,2.4454,3082.2,3081.3,0.62454]
[1720510380934,2.4454,3082.2,3081.3,3.24531]
[1720510381099,2.4454,3082.2,3081.4,3.24525]
[1720510381525,2.4454,3082.2,3081.5,3.24516]
[1720510382645,2.4454,3082.2,3080.8,3.24584]
[1720510382646,2.4454,3082.2,3081.3,3.24537]
[1720510382947,2.4454,3082.2,3081.1,3.24552]
[1720510383147,2.4454,3082.2,3081.0,3.24565]
[1720510383148,1.36878904,3082.1,3081.0,3.24565]
[1720510383305,1.12424904,3082.0,3081.2,3.24541]
[1720510383504,1.50566794,3082.0,3081.2,3.24541]
[1720510383741,0.3814189,3082.0,3081.0,3.24562]
[1720510383950,1.12431615,3081.9,3081.0,3.24562]
[1720510384239,0.3814189,3082.0,3081.0,3.97585562]
[1720510384418,1.12433293,3081.9,3081.0,3.97585562]
[1720510384621,0.3814189,3082.0,3081.0,3.97585562]
[1720510384816,1.1243335,3081.9,3081.0,0.73023562]
[1720510385019,4.86490287,3081.8,3080.6,3.24602]
[1720510385216,3.19689316,3081.7,3080.6,3.570622]
[1720510385405,1.1243335,3081.6,3080.6,3.570622]
[1720510385612,0.65579029,3081.7,3080.6,3.570622]
[1720510385815,4.36953597,3081.6,3080.8,3.24582]
[1720510386059,3.2452,3081.5,3080.8,3.2459]
[1720510388565,0.29795903,3081.6,3080.6,3.24602]
[1720510388722,1.1244359,3081.5,3080.6,3.24602]
[1720510388923,0.20781852,3081.5,3080.7,3.24598]
[1720510389149,1.12449324,3081.4,3080.7,3.24598]
[1720510389351,0.29795903,3081.6,3080.1,3.0]
[1720510389529,4.84962497,3081.5,3080.3,3.24635]
[1720510389738,2.54143836,3081.4,3080.4,3.0]
[1720510389933,1.12449918,3081.3,3080.0,3.24673]
[1720510390142,3.7251753,3081.2,3080.1,3.24664]
[1720510390347,1.12449918,3081.1,3080.1,3.24664]
[1720510390548,0.34326992,3081.0,3080.1,3.24664]
[1720510390863,0.34326992,3081.0,3079.8,3.24695]
[1720510390864,2.3082,3080.8,3079.8,3.24695]
[1720510391075,1.12449918,3080.7,3079.8,3.24695]
[1720510391622,1.12449918,3080.7,3079.4,2.4]
[1720510391623,1.12449918,3080.7,3079.6,3.24716]
[1720510391963,0.34326992,3080.6,3079.6,3.24716]
[1720510392164,0.34326992,3080.6,3079.7,3.24706]
[1720510392750,1.12479259,3080.5,3079.8,3.24695]
[1720510392923,0.34326992,3080.6,3079.8,3.24695]
[1720510393119,1.12478194,3080.5,3079.9,3.24676]
[1720510393320,2.3082,3080.8,3080.1,3.24657]
[1720510394621,2.4391,3081.3,3080.3,3.24641]
[1720510394938,1.12460768,3081.2,3080.4,3.24632]
[1720510395162,1.12460768,3081.1,3080.4,3.24632]
[1720510395330,6.616892,3081.3,3080.4,3.24632]
[1720510395529,1.12459936,3081.2,3080.4,3.24632]
[1720510395756,0.80273114,3081.2,3080.4,3.24632]
[1720510395966,1.12460011,3081.1,3080.4,3.24632]
[1720510396126,0.80273114,3081.2,3080.4,3.24632]
[1720510396469,1.12460572,3081.1,3080.4,3.24632]
[1720510396761,0.80273114,3081.2,3080.4,3.24632]
[1720510396958,1.12457166,3081.1,3080.4,3.9280691]
[1720510397187,0.80273114,3081.2,3080.4,3.9280691]
[1720510397323,1.12458745,3081.1,3080.4,3.9280691]
[1720510397526,0.80273114,3081.2,3080.4,3.9280691]
[1720510397760,1.12458823,3081.1,3080.4,3.9280691]
[1720510397965,6.616892,3081.3,3080.4,3.9280691]
[1720510398169,1.12456456,3081.2,3080.4,3.9280691]
[1720510398493,6.616892,3081.3,3080.4,3.9280691]
[1720510398970,1.12454032,3081.2,3080.4,3.9280691]
[1720510399141,1.12454032,3081.1,3080.5,3.24622]
[1720510399343,1.12454032,3081.2,3080.6,3.24609]
[1720510399782,5.4391,3081.3,3080.6,3.24609]
[1720510399982,1.12454053,3081.2,3080.4,3.24632]
[1720510400184,2.4391,3081.3,3080.4,3.24632]
[1720510400185,1.12454053,3081.1,3080.4,3.24632]
[1720510400336,3.71901,3081.3,3080.4,3.24632]
[1720510400670,1.12457977,3081.2,3080.4,3.24632]
[1720510400873,1.12457977,3081.1,3080.5,3.24621]
[1720510401074,1.12457977,3081.2,3080.5,3.24621]
[1720510401256,1.12457977,3081.2,3080.6,3.2461]
[1720510401456,1.12457977,3081.2,3080.5,0.6817171]
[1720510401457,1.12457977,3081.2,3080.5,3.9279371]
[1720510401693,1.12457977,3081.2,3080.5,3.24622]
[1720510401839,1.12457977,3081.2,3080.6,3.24611]
[1720510402684,2.4391,3081.3,3080.6,3.24611]
[1720510402839,7.36,3081.5,3080.6,3.24611]
[1720510403040,1.86050086,3081.4,3080.7,3.24598]
[1720510403240,2.4466,3081.7,3080.8,3.24588]
[1720510403241,1.12450086,3081.3,3080.8,3.24588]
[1720510403436,3.0,3081.6,3080.8,3.24588]
[1720510403654,1.66911533,3081.5,3080.8,3.24588]
[1720510403883,1.12445533,3081.4,3080.8,3.24588]
[1720510404183,3.0,3081.6,3080.8,3.24588]
[1720510404340,1.12441062,3081.5,3080.8,3.24588]
[1720510404548,3.0,3081.6,3080.8,3.24588]
[1720510404749,1.12440569,3081.5,3080.8,3.24588]
[1720510404948,3.74006,3081.6,3080.8,3.24588]
[1720510404949,1.12440569,3081.4,3080.8,3.24588]
[1720510405179,3.74006,3081.6,3080.8,3.24588]
[1720510405180,1.12440569,3081.5,3080.8,3.24588]
[1720510405482,1.12446331,3081.4,3080.8,3.24588]
[1720510405681,0.618666,3081.5,3080.8,3.24588]
[1720510405900,1.1244557,3081.3,3080.8,3.24588]
[1720510406178,0.618666,3081.5,3080.8,3.24588]
[1720510406376,1.12445494,3081.4,3080.8,3.24588]
[1720510406543,1.12445494,3081.3,3080.8,3.24588]
[1720510406888,0.618666,3081.5,3080.8,3.24588]
[1720510407351,1.12446431,3081.4,3080.8,3.24588]
[1720510407552,1.12446431,3081.3,3080.8,3.24588]
[1720510407755,0.618666,3081.5,3080.8,3.24588]
[1720510407965,1.12446305,3081.4,3080.8,3.24588]
[1720510408183,1.12446305,3081.3,3080.8,3.24588]
[1720510408495,1.12446305,3081.4,3080.8,3.24588]
[1720510408663,1.12446201,3081.3,3080.3,3.24637]
[1720510408853,2.46,3081.1,3080.1,2.4289]
[1720510409053,2.54133333,3081.0,3080.1,5.67545]
[1720510409356,3.04146666,3080.9,3080.1,5.67545]
[1720510409659,2.54133333,3080.8,3080.1,5.67545]
[1720510409897,1.12446201,3080.7,3080.1,5.67545]
[1720510410055,1.12446201,3081.0,3080.1,2.4289]
[1720510410256,1.12446201,3081.0,3080.3,3.24633]
[1720510410257,1.41710657,3080.9,3080.3,3.24633]
[1720510410581,1.12446201,3080.8,3080.3,3.24633]
[1720510411205,1.12446201,3081.0,3080.3,3.24633]
[1720510411353,2.54150654,3080.9,3080.3,3.24633]
[1720510411553,2.54150654,3080.8,3080.4,3.24633]
[1720510411928,0.2840765,3081.0,3080.4,3.24633]
[1720510412057,1.41703702,3080.9,3080.3,3.24633]
[1720510412251,1.12463449,3080.8,3080.3,3.24633]
[1720510412569,1.41711494,3080.7,3080.1,3.24661]
[1720510412898,1.12463449,3080.6,3079.6,3.24713]
[1720510413067,3.84861494,3080.5,3079.5,3.24725]
[1720510413390,2.54174943,3080.4,3079.5,3.24725]
[1720510413578,2.54174943,3080.4,3079.4,3.24736]
[1720510413579,2.54174943,3080.3,3079.6,3.24717]
[1720510413776,2.4315,3080.5,3079.4,3.24736]
[1720510413777,2.54174943,3080.2,3079.4,3.24736]
[1720510413983,1.12463449,3080.1,3079.5,3.24727]
[1720510414163,1.12463449,3080.4,3079.5,3.24727]
[1720510414363,2.54196528,3080.3,3079.5,3.24727]
[1720510414577,2.54196543,3080.2,3079.5,3.24727]
[1720510414795,1.12463449,3080.1,3079.5,3.24727]
[1720510414994,1.12463449,3080.1,3079.2,5.87572157]
[1720510414995,1.12463449,3080.1,3079.2,3.41552157]
[1720510415297,2.54245347,3080.0,3079.2,0.16797157]
[1720510415597,6.70952602,3080.4,3079.0,3.24778]
[1720510415598,2.41177602,3080.3,3079.0,3.24778]
[1720510415784,1.1250128,3079.9,3079.0,3.24778]
[1720510416102,1.1250128,3079.8,3079.2,3.24759]
[1720510416411,1.1250128,3079.8,3079.4,3.24737]
[1720510416699,0.71877602,3080.3,3079.4,5.70327]
[1720510416906,2.54234917,3080.2,3079.4,5.70327]
[1720510417111,1.12493326,3080.1,3079.4,3.24737]
[1720510417319,1.12493326,3080.2,3079.4,3.24737]
[1720510417517,2.72676734,3080.1,3079.3,3.24744]
[1720510417684,1.12493326,3080.0,3079.3,3.24744]
[1720510418375,0.18437093,3080.1,3079.1,3.24769]
[1720510418575,1.12498592,3079.9,3079.1,3.24769]
[1720510418815,1.12498592,3079.8,3079.1,3.24769]
[1720510418978,1.12498592,3080.1,3079.1,3.24769]
[1720510419191,1.41758105,3080.0,3079.1,3.24769]
[1720510419418,1.12498592,3079.9,3079.1,3.24769]
[1720510419879,1.12498592,3080.0,3079.1,3.24769]
[1720510420077,1.59301252,3079.9,3079.1,3.24769]
[1720510420300,2.54265457,3079.8,3078.7,3.24808]
[1720510420506,2.54265457,3079.7,3078.7,3.24808]
[1720510420785,2.54270448,3079.6,3078.7,3.24808]
[1720510420976,1.12498592,3079.5,3078.7,3.24808]
[1720510421182,4.24,3079.7,3078.5,3.24833]
[1720510421422,1.67520963,3079.6,3078.6,3.0]
[1720510421922,1.67520963,3079.6,3078.4,2.4017]
[1720510421923,1.1251998,3079.5,3078.4,3.24841]
[1720510422136,1.29271978,3079.4,3078.5,3.24832]
[1720510422283,1.1251998,3079.3,3078.5,3.24832]
[1720510423587,0.16751998,3079.4,3078.3,3.24847]
[1720510423918,2.54327135,3079.3,3078.3,3.24847]
[1720510424230,1.39639727,3079.2,3078.4,3.2484]
[1720510424390,0.16751998,3079.4,3078.5,3.24828]
[1720510424591,0.16751998,3079.4,3078.6,3.24822]
[1720510425026,2.4553,3079.7,3078.8,3.24794]
[1720510425205,7.36,3079.9,3078.8,3.24794]
[1720510425206,1.12522417,3079.6,3079.0,3.24779]
[1720510425409,3.0,3079.8,3079.0,3.24779]
[1720510426025,4.036,3079.8,3079.0,3.24779]
[1720510427454,4.036,3079.8,3078.9,3.24789]
[1720510427653,4.036,3079.8,3079.0,3.24779]
[1720510427858,3.0,3079.8,3079.0,3.24779]
[1720510428645,1.4177614,3079.7,3079.0,3.24779]
[1720510428844,3.0,3079.8,3079.0,3.24779]
[1720510429551,3.0,3079.8,3078.4,3.24838]
[1720510429552,4.94347345,3079.7,3078.6,3.24818]
[1720510429851,3.4365,3079.7,3078.7,0.324818]
[1720510430058,3.4365,3079.7,3078.8,3.24792]
[1720510430220,3.0,3079.8,3079.0,3.24779]
[1720510430416,7.36,3079.9,3079.0,3.24779]
[1720510430641,7.36,3079.9,3079.2,3.24759]
[1720510430851,7.36,3079.9,3079.3,3.24747]
[1720510433070,7.36,3079.9,3078.9,3.24784]
[1720510433362,0.98503,3079.8,3078.9,3.24784]
[1720510433524,0.98503,3079.8,3078.5,6.49651]
[1720510433525,3.09289688,3079.7,3078.5,6.49651]
[1720510433725,2.54289688,3079.6,3078.6,6.24818]
[1720510433925,0.55,3079.7,3078.6,3.24818]
[1720510434158,2.54306975,3079.6,3078.6,3.24818]
[1720510434459,1.12525282,3079.5,3078.6,3.24818]
[1720510434663,1.12525282,3079.6,3078.6,3.24818]
[1720510434869,0.16752528,3079.5,3078.6,3.24818]
[1720510435028,1.29278153,3079.5,3078.6,3.24818]
[1720510435225,0.16752528,3079.5,3078.6,3.24818]
[1720510435438,2.472,3079.4,3078.5,3.2483]
[1720510436166,2.472,3079.4,3078.4,3.24842]
[1720510436381,2.472,3079.4,3077.4,12.37248]
[1720510436382,3.647,3079.2,3077.5,2.3234]
[1720510436538,1.12530071,3079.1,3078.1,3.24868]
[1720510436863,0.28183007,3079.0,3078.3,3.24854]
[1720510437063,3.26395253,3079.3,3078.3,3.24854]
[1720510437365,1.12536222,3079.2,3078.3,3.24854]
[1720510437672,1.5642937,3079.1,3078.3,3.24854]
[1720510437970,0.43893148,3079.1,3078.3,3.24854]
[1720510438128,1.12539268,3079.0,3078.3,3.24854]
[1720510438466,3.26395253,3079.3,3078.3,3.24854]
[1720510438674,3.26395253,3079.3,3078.5,3.24825]
[1720510438675,1.12533768,3079.2,3078.5,3.24825]
[1720510438961,1.12533768,3079.1,3078.6,3.24821]
[1720510439158,3.26395253,3079.3,3078.6,3.24821]
[1720510439368,1.12530782,3079.2,3078.6,3.24821]
[1720510439549,1.12530782,3079.1,3078.6,3.24821]
[1720510439761,1.12530782,3079.2,3078.6,3.24821]
[1720510439930,1.12530859,3079.1,3078.6,3.24821]
[1720510440264,3.26395253,3079.3,3078.6,3.24821]
[1720510440443,1.12530821,3079.2,3078.6,3.24821]
[1720510440645,1.12530821,3079.1,3078.7,3.24812]
[1720510440849,9.832,3079.4,3078.7,3.24812]
[1720510440850,7.36,3079.4,3078.8,3.24791]
[1720510441471,7.36,3079.4,3078.7,3.24812]
[1720510441472,1.12516169,3079.3,3078.7,3.24812]
[1720510441628,7.36,3079.4,3078.9,3.24788]
[1720510441829,1.12514891,3079.3,3078.9,3.24788]
[1720510442088,3.0,3079.7,3078.9,3.24788]
[1720510442266,4.12516505,3079.6,3078.9,3.24788]
[1720510442459,1.12516505,3079.5,3078.9,3.24788]
[1720510442705,1.12516505,3079.6,3079.1,3.24769]
[1720510442902,1.12516505,3079.4,3079.1,3.24769]
[1720510443076,3.24,3079.8,3079.1,3.24769]
[1720510443400,1.12509869,3079.7,3078.9,3.24783]
[1720510443714,1.12511853,3079.6,3078.9,3.24783]
[1720510443999,1.12511853,3079.5,3079.0,3.2478]
[1720510444211,1.12512621,3079.4,3079.0,3.2478]
[1720510444381,1.12512621,3079.3,3079.0,3.2478]
[1720510444568,1.12512621,3079.7,3079.0,3.2478]
[1720510444889,1.12513278,3079.6,3079.1,3.24769]
[1720510445200,1.12513278,3079.5,3079.1,3.24769]
[1720510445398,1.12513278,3079.4,3079.1,3.24769]
[1720510445709,3.24,3079.8,3079.1,3.24769]
[1720510445864,1.12505481,3079.7,3079.3,3.24746]
[1720510446192,1.12505481,3079.6,3079.3,3.24746]
[1720510446391,3.24,3079.8,3079.3,3.24746]
[1720510446592,1.12500339,3079.7,3079.4,3.24738]
[1720510446768,1.12500339,3079.6,3079.4,3.24738]
[1720510447107,3.24,3079.8,3079.4,3.24738]
[1720510447409,1.12499364,3079.7,3079.4,3.24738]
[1720510447592,1.12499364,3079.6,3079.4,3.24738]
[1720510447788,1.12499364,3079.7,3079.3,0.71206105]
[1720510447963,1.12502838,3079.6,3079.1,3.24766]
[1720510448158,3.24,3079.8,3079.1,3.24766]
[1720510448159,1.12502838,3079.5,3079.1,3.24766]
[1720510448386,1.12502838,3079.4,3079.1,3.24766]
[1720510448620,3.24,3079.8,3079.1,3.24766]
[1720510448621,1.12502838,3079.7,3079.1,3.24766]
[1720510448781,1.12506293,3079.6,3079.1,3.24766]
[1720510448981,1.12506293,3079.5,3079.1,3.24766]
[1720510449301,3.24,3079.8,3079.1,3.24766]
[1720510449302,1.12506293,3079.4,3079.1,3.24766]
[1720510449504,3.24,3079.8,3079.1,3.24766]
[1720510449505,1.12506293,3079.7,3079.1,3.24766]
[1720510449677,1.12506484,3079.6,3079.1,3.24766]
[1720510449876,1.12506484,3079.5,3079.1,3.24766]
[1720510450188,1.12506484,3079.7,3079.1,6.49527]
[1720510450384,1.12506037,3079.6,3079.2,3.24758]
[1720510450565,1.12506037,3079.5,3079.2,3.24758]
[1720510450766,1.12506037,3079.4,3079.2,3.24758]
[1720510451086,1.12506037,3079.7,3078.9,3.24787]
[1720510451275,1.12511425,3079.6,3078.9,3.24787]
[1720510451471,1.12511425,3079.5,3078.9,3.24787]
[1720510451786,1.12511425,3079.6,3078.9,3.24787]
[1720510452006,1.12511425,3079.5,3079.0,3.2478]
[1720510452169,1.12511425,3079.5,3078.7,3.2481]
[1720510452499,3.62021425,3079.5,3078.7,3.2481]
[1720510452698,1.12511425,3079.4,3078.7,3.2481]
[1720510453800,1.12524939,3079.3,3078.7,3.2481]
[1720510454006,0.36203494,3079.3,3078.5,3.24831]
[1720510454217,1.12523918,3079.2,3078.2,2.4578]
[1720510454503,1.12523918,3079.1,3078.2,5.70634]
[1720510454716,1.37290713,3079.0,3078.2,5.70634]
[1720510454926,1.12540527,3078.9,3078.2,5.70634]
[1720510455088,1.12540527,3078.8,3078.3,3.24852]
[1720510455267,1.12540527,3078.7,3078.3,3.24852]
[1720510455472,1.12540527,3078.6,3078.3,3.24852]
[1720510455692,1.12540527,3079.0,3078.4,3.819052]
[1720510456016,1.12530514,3078.9,3078.4,3.819052]
[1720510456321,1.12530514,3078.8,3078.6,3.2482]
[1720510456468,1.12530514,3079.2,3078.5,3.24824]
[1720510456673,4.18232422,3079.5,3078.6,3.06495574]
[1720510456674,1.12530514,3079.1,3078.6,3.06495574]
[1720510456989,7.36,3079.6,3079.0,3.24774]
[1720510457192,1.34977938,3079.7,3079.0,3.24774]
[1720510457193,1.12514047,3079.5,3079.0,3.24774]
[1720510457519,1.12514047,3079.4,3079.0,4.137563]
[1720510457828,3.24,3079.8,3079.3,3.24743]
[1720510458008,1.1250264,3079.7,3079.4,0.324743]
[1720510458182,1.1250264,3079.6,3079.5,3.24722]
[1720510458379,8.70977938,3080.0,3079.5,3.24722]
[1720510458721,1.12493926,3079.9,3079.5,3.24722]
[1720510458893,1.12493926,3079.8,3079.6,3.24717]
[1720510459227,7.36,3080.0,3079.7,3.24706]
[1720510459439,1.34977938,3080.3,3079.9,3.24685]
[1720510459575,1.1247945,3080.2,3080.1,3.24664]
[1720510459922,1.68907574,3080.5,3080.1,3.24664]
[1720510459923,1.34977938,3080.5,3080.1,3.24664]
[1720510460095,1.12474977,3080.4,3080.1,3.24664]
[1720510460283,1.12474977,3080.3,3080.1,3.24664]
[1720510460484,1.34977938,3080.5,3080.1,3.24664]
[1720510460680,1.12474586,3080.4,3080.2,3.24654]
[1720510460881,1.12474586,3080.3,3080.2,3.24654]
[1720510461080,1.34977938,3080.5,3080.2,3.24654]
[1720510461297,1.12474464,3080.4,3080.2,3.24654]
[1720510461500,1.34977938,3080.6,3080.2,3.24654]
[1720510461830,1.12474374,3080.5,3080.2,3.24654]
[1720510461989,1.12474374,3080.4,3080.2,3.24654]
[1720510462203,1.12474374,3080.5,3080.2,3.24654]
[1720510462402,1.12474453,3080.4,3080.2,3.24654]
[1720510462639,1.34977938,3080.6,3080.2,3.24654]
[1720510462796,1.12474461,3080.5,3080.2,3.24654]
[1720510463129,1.12474461,3080.4,3080.2,3.24654]
[1720510463335,1.34977938,3080.5,3080.0,3.24667]
[1720510463625,1.12478279,3080.4,3079.7,2.3128]
[1720510463825,1.12483094,3080.3,3079.7,2.3128]
[1720510463986,1.3520851,3080.5,3079.6,3.24714]
[1720510464188,1.3520851,3080.5,3079.4,3.24736]
[1720510464189,1.3520851,3080.3,3079.4,3.24736]
[1720510464414,1.3520851,3080.3,3079.2,3.24756]
[1720510464415,1.3520851,3080.1,3079.2,3.24756]
[1720510464731,1.3520851,3079.9,3079.0,3.24772]
[1720510464933,2.89376035,3079.8,3079.0,3.24772]
[1720510465132,1.69010638,3079.9,3079.1,3.24766]
[1720510465133,2.47704519,3079.7,3079.1,3.24766]